fUST/lending_fUST_20260406
["ID","MTS","AMOUNT","RATE_DAILY","PERIOD"]
[419862429,1775431849332,-1000.0,0.00022,2]
[419862430,1775431849342,-1000.0,0.00022,2]
[419862431,1775431849351,-1000.0,0.00022,2]
[419862432,1775431849360,-1000.0,0.00022,2]
[419862433,1775431849369,-1000.0,0.00022,2]
[419862434,1775431849378,-1000.0,0.00022,2]
[419862435,1775431849387,-1000.0,0.00022,2]
[419862436,1775431849396,-1000.0,0.00022,2]
[419862437,1775431849405,-1000.0,0.00022,2]
[419862438,1775431849414,-1000.0,0.00022,2]
[419862439,1775431849423,-873.76495345,0.00022,2]
[419862440,1775431849432,-1000.0,0.00022,2]
[419862441,1775431849442,-1000.0,0.00022,2]
[419862442,1775431849451,-1000.0,0.00022,2]
[419862443,1775431849461,-1000.0,0.00022,2]
[419862444,1775431849470,-992.72507262,0.00022,2]
[419862445,1775431849479,-180.32216267,0.00022,2]
[419862446,1775431849488,-151.0,0.00022,2]
[419862447,1775431849498,-151.0,0.00022,2]
[419862448,1775431849507,-151.0,0.00022,2]
[419862449,1775431849517,-151.0,0.00022,2]
[419862450,1775431849526,-151.0,0.00022,2]
[419862451,1775431849535,-151.0,0.00022,2]
[419862452,1775431849544,-151.0,0.00022,2]
[419862453,1775431849554,-151.0,0.00022,2]
[419862454,1775431849563,-151.0,0.00022,2]
[419862455,1775431849573,-151.0,0.00022,2]
[419862456,1775431849582,-151.0,0.00022,2]
[419862457,1775431849591,-151.0,0.00022,2]
[419862458,1775431849600,-151.0,0.00022,2]
[419862459,1775431849609,-151.0,0.00022,2]
[419862460,1775431849618,-151.0,0.00022,2]
[419862461,1775431849628,-151.0,0.00022,2]
[419862462,1775431849637,-151.0,0.00022,2]
[419862463,1775431849646,-151.0,0.00022,2]
[419862464,1775431849656,-65133.09321983,0.00022,2]
[419862465,1775431849664,-469436.92940479,0.00022,2]
[419862466,1775431849673,-151.0,0.00022,2]
[419862467,1775431849682,-161.349537,0.00022,2]
[419862468,1775431849691,-154.0,0.00022,2]
[419862469,1775431849700,-161.349537,0.00022,2]
[419862470,1775431849709,-161.349537,0.00022,2]
[419862471,1775431849718,-161.349537,0.00022,2]
[419862472,1775431849727,-151.0,0.00022,2]
[419862473,1775431849736,-151.0,0.00022,2]
[419862474,1775431849745,-151.0,0.00022,2]
[419862475,1775431849756,-188.166719,0.00022,2]
[419862476,1775431849764,-188.166719,0.00022,2]
[419862477,1775431849774,-188.166719,0.00022,2]
[419862478,1775431849783,-188.166719,0.00022,2]
[419862479,1775431849791,-178.0,0.00022,2]
[419862480,1775431849800,-151.0,0.00022,2]
[419862481,1775431849809,-151.0,0.00022,2]
[419862482,1775431849818,-151.0,0.00022,2]
[419862483,1775431849827,-154.0,0.00022,2]
[419862484,1775431849836,-151.0,0.00022,2]
[419862485,1775431849844,-151.0,0.00022,2]
[419862486,1775431849853,-151.0,0.00022,2]
[419862487,1775431849862,-151.0,0.00022,2]
[419862488,1775431849871,-338.0,0.00022,2]
[419862489,1775431849880,-151.0,0.00022,2]
[419862490,1775431849889,-151.0,0.00022,2]
[419862491,1775431849899,-151.0,0.00022,2]
[419862492,1775431849907,-151.0,0.00022,2]
[419862493,1775431849916,-151.0,0.00022,2]
[419862494,1775431849926,-151.0,0.00022,2]
[419862495,1775431849935,-151.0,0.00022,2]
[419862496,1775431849944,-151.0,0.00022,2]
[419862497,1775431849954,-151.0,0.00022,2]
[419862498,1775431849963,-238.828125,0.00022,2]
[419862499,1775431849972,-151.0,0.00022,2]
[419862500,1775431849980,-168.653921,0.00022,2]
[419862501,1775431849989,-151.0,0.00022,2]
[419862502,1775431849999,-151.0,0.00022,2]
[419862503,1775431850008,-151.0,0.00022,2]
[419862504,1775431850016,-151.0,0.00022,2]
[419862505,1775431850026,-199.527699,0.00022,2]
[419862506,1775431850035,-199.527699,0.00022,2]
[419862507,1775431850044,-199.527699,0.00022,2]
[419862508,1775431850053,-199.527699,0.00022,2]
[419862509,1775431850061,-199.527699,0.00022,2]
[419862510,1775431850071,-199.527699,0.00022,2]
[419862511,1775431850080,-199.527699,0.00022,2]
[419862512,1775431850090,-199.527699,0.00022,2]
[419862513,1775431850099,-154.0,0.00022,2]
[419862514,1775431850108,-151.0,0.00022,2]
[419862515,1775431850117,-151.0,0.00022,2]
[419862516,1775431850126,-151.0,0.00022,2]
[419862517,1775431850135,-151.0,0.00022,2]
[419862518,1775431850144,-151.0,0.00022,2]
[419862520,1775431850153,-151.0,0.00022,2]
[419862521,1775431850162,-154.52543,0.00022,2]
[419862523,1775431850171,-151.0,0.00022,2]
[419862525,1775431850180,-151.0,0.00022,2]
[419862526,1775431850189,-720.276284,0.00022,2]
[419862527,1775431850198,-720.276284,0.00022,2]
[419862528,1775431850207,-720.276284,0.00022,2]
[419862529,1775431850216,-720.276284,0.00022,2]
[419862530,1775431850225,-720.276284,0.00022,2]
[419862531,1775431850234,-720.276284,0.00022,2]
[419862532,1775431850243,-720.276284,0.00022,2]
[419862533,1775431850252,-720.276284,0.00022,2]
[419862534,1775431850261,-151.0,0.00022,2]
[419862535,1775431850270,-151.0,0.00022,2]
[419862536,1775431850279,-1020.421,0.00022,2]
[419862537,1775431850289,-1020.421,0.00022,2]
[419862538,1775431850298,-1020.421,0.00022,2]
[419862539,1775431850307,-151.0,0.00022,2]
[419862540,1775431850317,-1020.421,0.00022,2]
[419862541,1775431850326,-151.0,0.00022,2]
[419862542,1775431850335,-1020.421,0.00022,2]
[419862543,1775431850344,-1020.421,0.00022,2]
[419862544,1775431850354,-1020.421,0.00022,2]
[419862545,1775431850363,-1231.325922,0.00022,2]
[419862546,1775431850373,-1020.421,0.00022,2]
[419862547,1775431850383,-1231.325922,0.00022,2]
[419862548,1775431850392,-1231.325922,0.00022,2]
[419862549,1775431850402,-1231.325922,0.00022,2]
[419862550,1775431850412,-1231.325922,0.00022,2]
[419862551,1775431850421,-1231.325922,0.00022,2]
[419862552,1775431850431,-1231.325922,0.00022,2]
[419862553,1775431850440,-1231.325922,0.00022,2]
[419862554,1775431850450,-151.0,0.00022,2]
[419862555,1775431850459,-151.0,0.00022,2]
[419862556,1775431850469,-212.185576,0.00022,2]
[419862557,1775431850478,-172.0,0.00022,2]
[419862558,1775431850487,-180.753072,0.00022,2]
[419862559,1775431850497,-180.753072,0.00022,2]
[419862560,1775431850508,-180.753072,0.00022,2]
[419862561,1775431850517,-180.753072,0.00022,2]
[419862562,1775431850527,-180.753072,0.00022,2]
[419862563,1775431850537,-180.753072,0.00022,2]
[419862564,1775431850546,-180.753072,0.00022,2]
[419862565,1775431850556,-180.753072,0.00022,2]
[419862566,1775431850651,-916.320463,0.00022,2]
[419862567,1775431850660,-916.320463,0.00022,2]
[419862568,1775431850669,-916.320463,0.00022,2]
[419862569,1775431850679,-916.320463,0.00022,2]
[419862570,1775431850688,-186.957114,0.00022,2]
[419862571,1775431850698,-916.320463,0.00022,2]
[419862572,1775431850710,-916.320463,0.00022,2]
[419862573,1775431850719,-916.320463,0.00022,2]
[419862574,1775431850729,-916.320463,0.00022,2]
[419862575,1775431850738,-151.0,0.00022,2]
[419862576,1775431850747,-151.0,0.00022,2]
[419862577,1775431850757,-151.0,0.00022,2]
[419862578,1775431850766,-184.55444,0.00022,2]
[419862579,1775431850776,-151.0,0.00022,2]
[419862580,1775431850785,-151.0,0.00022,2]
[419862581,1775431850795,-151.0,0.00022,2]
[419862582,1775431850804,-151.0,0.00022,2]
[419862583,1775431850813,-160.042029,0.00022,2]
[419862584,1775431850822,-160.042029,0.00022,2]
[419862585,1775431850832,-160.042029,0.00022,2]
[419862586,1775431850841,-160.042029,0.00022,2]
[419862587,1775431850850,-160.042029,0.00022,2]
[419862588,1775431850859,-160.042029,0.00022,2]
[419862589,1775431850869,-895.76,0.00022,2]
[419862590,1775431850879,-895.76,0.00022,2]
[419862591,1775431850888,-895.76,0.00022,2]
[419862592,1775431850898,-895.76,0.00022,2]
[419862593,1775431850907,-895.76,0.00022,2]
[419862594,1775431850917,-895.76,0.00022,2]
[419862595,1775431850926,-895.76,0.00022,2]
[419862596,1775431850935,-895.76,0.00022,2]
[419862597,1775431850945,-895.76,0.00022,2]
[419862598,1775431850956,-895.76,0.00022,2]
[419862599,1775431850965,-895.76,0.00022,2]
[419862600,1775431850975,-895.76,0.00022,2]
[419862601,1775431850984,-895.76,0.00022,2]
[419862602,1775431850994,-895.76,0.00022,2]
[419862603,1775431851004,-895.76,0.00022,2]
[419862604,1775431851013,-895.76,0.00022,2]
[419862605,1775431851023,-895.76,0.00022,2]
[419862606,1775431851032,-895.76,0.00022,2]
[419862607,1775431851041,-895.76,0.00022,2]
[419862608,1775431851051,-1097.61,0.00022,2]
[419862609,1775431851060,-668.65185757,0.00022047,2]
[419862610,1775431851069,-160.0,0.00022076,2]
[419862611,1775431851077,-160.0,0.00022076,2]
[419862612,1775431851086,-693.3919763,0.00022102,2]
[419862613,1775431851095,-1715.47188877,0.00022116,2]
[419862614,1775431851104,-500.0,0.00022145,2]
[419862615,1775431851113,-719.04747942,0.00022157,2]
[419862616,1775431851122,-745.65223616,0.00022212,2]
[419862617,1775431851132,-773.2413689,0.00022267,2]
[419862618,1775431851141,-520.57896483,0.00022301,2]
[419862619,1775431851150,-578.20924308,0.0002232,2]
[419862620,1775431851159,-2312.83697232,0.0002232,2]
[419862621,1775431851168,-801.85129955,0.00022322,2]
[419862622,1775431851177,-831.51979763,0.00022377,2]
[419862623,1775431851186,-500.0,0.00022419,2]
[419862624,1775431851195,-151.0,0.0002243,2]
[419862625,1775431851205,-180.753072,0.0002243,2]
[419862626,1775431851214,-180.753072,0.0002243,2]
[419862627,1775431851222,-180.753072,0.0002243,2]
[419862628,1775431851232,-180.753072,0.0002243,2]
[419862629,1775431851241,-916.320463,0.0002243,2]
[419862630,1775431851251,-916.320463,0.0002243,2]
[419862631,1775431851260,-916.320463,0.0002243,2]
[419862632,1775431851269,-916.320463,0.0002243,2]
[419862633,1775431851278,-151.0,0.0002243,2]
[419862634,1775431851287,-151.0,0.0002243,2]
[419862635,1775431851297,-151.0,0.0002243,2]
[419862636,1775431851306,-160.042029,0.0002243,2]
[419862637,1775431851315,-160.042029,0.0002243,2]
[419862638,1775431851325,-1917.05054,0.00022431,2]
[419862639,1775431851335,-862.28603014,0.00022432,2]
[419862640,1775431851344,-894.19061326,0.00022487,2]
[419862641,1775431851355,-1000.0,0.00022521,2]
[419862642,1775431851365,-1000.0,0.00022521,2]
[419862643,1775431851374,-1000.0,0.00022521,2]
[419862644,1775431851383,-503.31175885,0.00022521,2]
[419862645,1775431851392,-217.21054806,0.00022521,2]
[419862646,1775431851401,-1005.77750109,0.00022521,2]
[419862647,1775431851410,-1000.0,0.00022521,2]
[419862648,1775431851419,-1000.0,0.00022521,2]
[419862649,1775431851428,-1000.0,0.00022521,2]
[419862650,1775431851438,-927.27566595,0.00022542,2]
[419862651,1775431851447,-947.0,0.00022689,3]
[419862652,1775431851457,-201.33016915,0.00022689,3]
[419862653,1775431851467,-947.0,0.00022689,3]
[419862654,1775431851476,-200.0,0.00022689,3]
[419862655,1775431851486,-947.0,0.00022689,3]
[419862656,1775431851495,-947.0,0.00022689,3]
[419862657,1775431851505,-340.0,0.00022689,3]
[419862658,1775431851514,-647.0,0.00022689,3]
[419862659,1775431851523,-947.0,0.00022689,3]
[419862660,1775431851533,-340.0,0.00022689,3]
[419862661,1775431851542,-647.0,0.00022689,3]
[419862662,1775431851551,-340.0,0.00022689,3]
[419862663,1775431851560,-647.0,0.00022689,3]
[419862664,1775431851570,-947.0,0.00022689,3]
[419862665,1775431851579,-340.0,0.00022689,3]
[419862666,1775431851589,-647.0,0.00022689,3]
[419862667,1775431851599,-947.0,0.00022689,3]
[419862668,1775431851608,-340.0,0.00022689,3]
[419862669,1775431851617,-647.0,0.00022689,3]
[419862670,1775431851627,-947.0,0.00022689,3]
[419862671,1775431851636,-647.0,0.00022689,3]
[419862672,1775431851646,-716.0,0.00022689,3]
[419862674,1775431851655,-334.0,0.00022689,3]
[419862675,1775431851665,-647.0,0.00022689,3]
[419862677,1775431851674,-647.0,0.00022689,3]
[419862678,1775431851683,-647.0,0.00022689,3]
[419862680,1775431851693,-647.0,0.00022689,3]
[419862682,1775431851702,-721.84176436,0.00022689,3]
[419862684,1775431851712,-164.0,0.00022689,3]
[419862685,1775431851721,-191.6762638,0.00022689,3]
[419862687,1775431851730,-500.0,0.00022693,2]
[419862689,1775431851740,-500.0,0.00022726,5]
[419862690,1775431851750,-979.24992355,0.0002282,2]
[419862691,1775431851759,-532.28466545,0.00022834,3]
[419862692,1775431851768,-609.80934493,0.00022834,3]
[419862693,1775431851778,-151.0,0.00022853,2]
[419862694,1775431851788,-197.464342,0.00022853,2]
[419862695,1775431851797,-199.527699,0.00022853,2]
[419862696,1775431851807,-199.527699,0.00022853,2]
[419862697,1775431851816,-199.527699,0.00022853,2]
[419862698,1775431851825,-199.527699,0.00022853,2]
[419862699,1775431851835,-151.0,0.00022853,2]
[419862700,1775431851844,-151.0,0.00022853,2]
[419862701,1775431851853,-151.0,0.00022853,2]
[419862702,1775431851863,-599.60298507,0.00022868,2]
[419862703,1775431851872,-2398.4119403,0.00022868,2]
[419862704,1775431851882,-1507.26,0.00022876,2]
[419862705,1775431851891,-1507.26,0.00022876,2]
[419862706,1775431851901,-1507.26,0.00022876,2]
[419862707,1775431851910,-1507.26,0.00022876,2]
[419862708,1775431851920,-1507.26,0.00022876,2]
[419862709,1775431851929,-1507.26,0.00022876,2]
[419862710,1775431851940,-1507.26,0.00022876,2]
[419862711,1775431851949,-1507.26,0.00022876,2]
[419862713,1775431851958,-1507.26,0.00022876,2]
[419862714,1775431851967,-1507.26,0.00022876,2]
[419862716,1775431851976,-1507.26,0.00022876,2]
[419862718,1775431851986,-151.0,0.00022876,2]
[419862720,1775431851995,-161.349537,0.00022876,2]
[419862721,1775431852006,-161.349537,0.00022876,2]
[419862723,1775431852016,-161.349537,0.00022876,2]
[419862725,1775431852025,-161.349537,0.00022876,2]
[419862727,1775431852033,-151.0,0.00022876,2]
[419862729,1775431852043,-151.0,0.00022876,2]
[419862731,1775431852051,-151.0,0.00022876,2]
[419862733,1775431852061,-188.166719,0.00022876,2]
[419862735,1775431852069,-188.166719,0.00022876,2]
[419862737,1775431852079,-188.166719,0.00022876,2]
[419862739,1775431852088,-188.166719,0.00022876,2]
[419862740,1775431852097,-235.360114,0.00022876,2]
[419862742,1775431852106,-151.0,0.00022876,2]
[419862744,1775431852116,-151.0,0.00022876,2]
[419862745,1775431852125,-151.0,0.00022876,2]
[419862747,1775431852134,-151.0,0.00022876,2]
[419862749,1775431852143,-151.0,0.00022876,2]
[419862751,1775431852153,-151.0,0.00022876,2]
[419862752,1775431852162,-151.0,0.00022876,2]
[419862753,1775431852171,-720.276284,0.00022876,2]
[419862754,1775431852180,-720.276284,0.00022876,2]
[419862756,1775431852190,-720.276284,0.00022876,2]
[419862757,1775431852199,-720.276284,0.00022876,2]
[419862759,1775431852209,-151.0,0.00022876,2]
[419862761,1775431852218,-1020.421,0.00022876,2]
[419862762,1775431852227,-1020.421,0.00022876,2]
[419862763,1775431852237,-151.0,0.00022876,2]
[419862764,1775431852246,-1020.421,0.00022876,2]
[419862765,1775431852255,-1020.421,0.00022876,2]
[419862766,1775431852264,-1231.325922,0.00022876,2]
[419862767,1775431852273,-1231.325922,0.00022876,2]
[419862768,1775431852283,-1231.325922,0.00022876,2]
[419862769,1775431852292,-746.64934298,0.00022876,2]
[419862770,1775431852400,-160.042029,0.0002243,2]
[419862771,1775431852409,-484.67657902,0.00022876,2]
[419862772,1775431852419,-500.0,0.00022967,2]
[419862773,1775431852428,-270.83333333,0.00023,2]
[419862774,1775431852438,-154.0,0.00023,2]
[419862775,1775431852532,-178.0,0.00023,2]
[419862776,1775431852542,-154.0,0.00023,2]
[419862777,1775431852552,-338.0,0.00023,2]
[419862778,1775431852562,-270.83333333,0.00023,3]
[419862779,1775431852571,-154.0,0.00023,2]
[419862780,1775431852580,-172.0,0.00023014,7]
[419862781,1775431852590,-1500.0,0.00023068,2]
[419862782,1775431852599,-1500.0,0.00023068,2]
[419862783,1775431852608,-1000.67352224,0.00023068,2]
[419862784,1775431852618,-1500.0,0.00023068,2]
[419862785,1775431852627,-1500.0,0.00023068,2]
[419862786,1775431852636,-1500.0,0.00023068,2]
[419862787,1775431852646,-224.92541685,0.00023141,2]
[419862788,1775431852655,-331.05033,0.00023144,14]
[419862789,1775431852664,-265.436771,0.00023144,14]
[419862790,1775431852673,-160.0,0.00023144,14]
[419862791,1775431852682,-473.598368,0.00023144,14]
[419862792,1775431852691,-787.196737,0.00023144,14]
[419862793,1775431852701,-379.630756,0.00023144,14]
[419862794,1775431852710,-160.0,0.00023144,14]
[419862795,1775431852719,-507.933459,0.00023144,14]
[419862796,1775431852728,-855.866918,0.00023144,14]
[419862797,1775431852738,-160.0,0.00023144,14]
[419862798,1775431852747,-233.961652,0.00023144,14]
[419862799,1775431852756,-307.923305,0.00023144,14]
[419862800,1775431852765,-187.367133,0.00023144,14]
[419862801,1775431852774,-160.0,0.00023144,14]
[419862802,1775431852784,-402.794034,0.00023144,14]
[419862803,1775431852794,-645.588068,0.00023144,14]
[419862804,1775431852803,-725.20155262,0.00023148,3]
[419862805,1775431852812,-585.45700828,0.00023148,3]
[419862806,1775431852821,-361.58808089,0.00023148,3]
[419862807,1775431852830,-916.320463,0.00023148,2]
[419862808,1775431852839,-916.320463,0.00023148,2]
[419862809,1775431852848,-916.320463,0.00023148,2]
[419862810,1775431852858,-916.320463,0.00023148,2]
[419862811,1775431852867,-151.0,0.00023148,2]
[419862812,1775431852875,-160.042029,0.00023148,2]
[419862813,1775431852885,-160.042029,0.00023148,2]
[419862814,1775431852895,-500.0,0.00023241,2]
[419862815,1775431852903,-1917.05054,0.00023337,2]
[419862816,1775431852912,-394.7,0.00023356,3]
[419862817,1775431852921,-3157.68,0.00023357,3]
[419862818,1775431852930,-1578.84,0.00023357,3]
[419862819,1775431852939,-789.42,0.00023357,3]
[419862820,1775431852948,-151.0,0.00023357,2]
[419862821,1775431852958,-180.753072,0.00023357,2]
[419862822,1775431852967,-180.753072,0.00023357,2]
[419862823,1775431852976,-180.753072,0.00023357,2]
[419862824,1775431852985,-180.753072,0.00023357,2]
[419862825,1775431852995,-214.927,0.00023369,2]
[419862826,1775431853004,-266.666,0.00023369,2]
[419862827,1775431853012,-2204.0,0.00023369,2]
[419862828,1775431853022,-644.0,0.00023369,2]
[419862829,1775431853031,-478.72,0.00023369,2]
[419862830,1775431853040,-184.0,0.00023369,2]
[419862831,1775431853049,-621.78829552,0.00023416,2]
[419862832,1775431853058,-523.1787536,0.00023416,2]
[419862833,1775431853068,-500.0,0.00023515,2]
[419862834,1775431853077,-160.0,0.00023536,14]
[419862835,1775431853086,-191.752321,0.00023536,14]
[419862836,1775431853095,-223.504642,0.00023536,14]
[419862837,1775431853104,-1462.01338788,0.00023536,3]
[419862838,1775431853115,-151.0,0.00023616,2]
[419862839,1775431853124,-199.527699,0.00023616,2]
[419862840,1775431853133,-199.527699,0.00023616,2]
[419862841,1775431853143,-199.527699,0.00023616,2]
[419862842,1775431853153,-199.527699,0.00023616,2]
[419862843,1775431853162,-151.0,0.00023616,2]
[419862844,1775431853171,-151.0,0.00023616,2]
[419862845,1775431853180,-243.567737,0.00023616,2]
[419862846,1775431853189,-720.276284,0.00023616,2]
[419862847,1775431853198,-720.276284,0.00023616,2]
[419862848,1775431853208,-720.276284,0.00023616,2]
[419862849,1775431853217,-720.276284,0.00023616,2]
[419862850,1775431853226,-151.0,0.00023616,2]
[419862851,1775431853235,-1020.421,0.00023616,2]
[419862852,1775431853245,-1020.421,0.00023616,2]
[419862853,1775431853255,-1020.421,0.00023616,2]
[419862854,1775431853264,-1020.421,0.00023616,2]
[419862855,1775431853275,-1231.325922,0.00023616,2]
[419862856,1775431853284,-1231.325922,0.00023616,2]
[419862857,1775431853293,-1231.325922,0.00023616,2]
[419862858,1775431853305,-1231.325922,0.00023616,2]
[419862859,1775431853315,-399.52493924,0.00023616,2]
[419862860,1775431853324,-2000.0,0.00023616,2]
[419862861,1775431853335,-2000.0,0.00023616,2]
[419862862,1775431853345,-2000.0,0.00023616,2]
[419862863,1775431853355,-1500.0,0.00023616,2]
[419862864,1775431853364,-77000.94246918,0.0002375,2]
[419862865,1775431853376,-25849.86678596,0.0002375,2]
[419862866,1775431853388,-111557.47860658,0.0002375,2]
[419862867,1775431853399,-16105.45855777,0.0002375,2]
[419862868,1775431853411,-1225.22833613,0.0002375,2]
[419862869,1775431853422,-57752.43472794,0.0002375,2]
[419862870,1775431853433,-29242.93993432,0.0002375,2]
[419862872,1775432102214,1259.0,0.0003286,120]
[419862876,1775432291147,500.0,0.0003467,120]
[419862877,1775432291366,500.40016,0.0003467,120]
[419862879,1775432624460,1195.45907836,0.00032876,120]
[419862910,1775433032256,-1000.0,0.00013699,2]
[419862912,1775433032266,-300.0,0.00015531,46]
[419862914,1775433032276,-300.0,0.00015531,86]
[419862916,1775433032285,-2255.7861142,0.00021998,2]
[419862918,1775433032295,-180.0,0.00021999,2]
[419862920,1775433032304,-191.0,0.00022,2]
[419862922,1775433032314,-154.0,0.00022,2]
[419862924,1775433032323,-161.0,0.00022,2]
[419862926,1775433032333,-154.0,0.00022,2]
[419862928,1775433032342,-304.0,0.00022,2]
[419862930,1775433032352,-154.0,0.00022,2]
[419862933,1775433032362,-160.0,0.00022074,2]
[419862935,1775433032372,-193.275454,0.00022466,2]
[419862936,1775433032382,-154.0,0.00023,2]
[419862938,1775433032391,-161.0,0.00023,2]
[419862940,1775433032401,-154.0,0.00023,2]
[419862942,1775433032410,-304.0,0.00023,2]
[419862944,1775433032419,-160.84695419,0.00023,2]
[419862946,1775433032428,-270.83333333,0.00023,2]
[419862948,1775433032436,-192.0,0.00023014,7]
[419862950,1775433032446,-244.75105854,0.00023086,2]
[419862952,1775433032456,-2735.75356346,0.000231,2]
[419862954,1775433032466,-2735.75356344,0.000231,2]
[419862956,1775433032475,-2735.75356344,0.000231,2]
[419862958,1775433032486,-598.1310903,0.000231,2]
[419862960,1775433032495,-47.85486293,0.00023357,3]
[419862963,1775433032522,-850.26695872,0.00023357,3]
[419862965,1775433032531,-925.47371525,0.00023357,2]
[419862967,1775433032540,-510.47446722,0.00023357,2]
[419862969,1775433032549,-1530.07800555,0.00023357,2]
[419862970,1775433032558,-584.82259712,0.00023357,2]
[419862972,1775433032567,-2203.31232799,0.00023357,2]
[419862974,1775433032576,-1435.9378631,0.00023357,2]
[419863080,1775433038542,-907.51016394,0.00023357,2]
[419863081,1775433038551,-1018.30687162,0.00023357,2]
[419863082,1775433038563,-754.745,0.00023357,2]
[419863083,1775433038596,-1222.90206636,0.00023357,2]
[419863084,1775433038605,-1039.6846171,0.00023357,2]
[419863085,1775433038614,-1406.0,0.00023544,2]
[419863086,1775433038624,-644.0,0.00023544,2]
[419863087,1775433038634,-2035.11331651,0.00023544,2]
[419863120,1775433043446,-1407.140405,0.00023359,2]
[419863121,1775433043499,-673.09313846,0.00023359,2]
[419863122,1775433043510,-168.88668349,0.00023544,2]
[419863123,1775433043520,-440.0,0.00023544,2]
[419863124,1775433043531,-2735.75356344,0.00023673,2]
[419863125,1775433043541,-2632.51661461,0.00023734,2]
[419863173,1775433046651,-28.27291599,0.00023734,2]
[419863174,1775433046661,-177.0224514,0.00023734,2]
[419863176,1775433046670,-151.0,0.00024,10]
[419863177,1775433046680,-161.99001359,0.00024,2]
[419863178,1775433046689,-161.0,0.00024,2]
[419863179,1775433046698,-154.0,0.00024,2]
[419863181,1775433046708,-304.0,0.00024,2]
[419863183,1775433046717,-4295.92891952,0.00024121,2]
[419863185,1775433046729,-30877.58140293,0.00024121,2]
[419863187,1775433046738,-557.5788265,0.00024206,2]
[419863189,1775433046747,-1917.05054,0.00024243,2]
[419863190,1775433046756,-500.0,0.00024243,2]
[419863192,1775433046766,-500.0,0.00024399,2]
[419863194,1775433046775,-500.0,0.00024399,2]
[419863196,1775433046785,-500.0,0.00024399,2]
[419863198,1775433046795,-500.0,0.00024399,2]
[419863200,1775433046804,-500.0,0.00024399,2]
[419863202,1775433046814,-500.0,0.00024399,2]
[419863203,1775433046823,-179.856415,0.00024399,2]
[419863204,1775433046832,-500.0,0.00024399,2]
[419863205,1775433046842,-384.07589009,0.00024399,2]
[419863206,1775433046851,-500.0,0.00024399,2]
[419863207,1775433046861,-500.0,0.00024399,2]
[419863208,1775433046871,-500.0,0.00024399,2]
[419863209,1775433046880,-500.0,0.00024399,2]
[419863210,1775433046890,-500.0,0.00024399,2]
[419863211,1775433046899,-172.51867737,0.00024399,2]
[419863212,1775433046908,-500.0,0.00024399,2]
[419863213,1775433046918,-500.0,0.00024399,2]
[419863214,1775433047040,-500.0,0.00024399,2]
[419863215,1775433047049,-370.87872655,0.00024399,2]
[419863216,1775433047058,-500.0,0.00024399,2]
[419863217,1775433047068,-500.0,0.00024399,2]
[419863218,1775433047077,-500.0,0.00024399,2]
[419863219,1775433047087,-500.0,0.00024399,2]
[419863220,1775433047096,-500.0,0.00024399,2]
[419863221,1775433047106,-500.0,0.00024399,2]
[419863222,1775433047115,-500.0,0.00024399,2]